fUSD/lending_fUSD_20240521
["ID","MTS","AMOUNT","RATE_DAILY","PERIOD"]
[327647780,1716276644527,-272.66016932,0.00035394,2]
[327647781,1716276644537,-3435.20298035,0.00035396,4]
[327647782,1716276644546,-7272.8,0.00035397,5]
[327647783,1716276644556,-2000.0,0.00035398,2]
[327647784,1716276644565,-200.0,0.00035398,2]
[327647785,1716276644575,-817.58542644,0.00035398,4]
[327647786,1716276644585,-155.0,0.00035398,4]
[327647787,1716276644594,-159.08487575,0.00035398,4]
[327647788,1716276644604,-155109.86842494,0.00035398,5]
[327647789,1716276644617,-1163.02683964,0.00035398,5]
[327647790,1716276644648,151.39,0.00013973,2]
[327647791,1716276644665,-5009.70132786,0.00035398,5]
[327647792,1716276644677,-2430.26745001,0.00035398,5]
[327647793,1716276644688,-3114.68317016,0.00035398,5]
[327647794,1716276644700,-22106.3684875,0.00035398,5]
[327647795,1716276644712,-602.63787972,0.00035398,5]
[327647796,1716276646474,-324.92839964,0.00035148,6]
[327647798,1716276646486,-1780.084,0.00035148,6]
[327647799,1716276646819,-404.0,0.00035148,6]
[327647800,1716276646852,-322.33306141,0.00035148,6]
[327647801,1716276646863,-922.12073848,0.00035148,6]
[327647802,1716276646875,-4293.17380047,0.00035148,6]
[327647803,1716276646884,-8046.64,0.00035257,6]
[327647804,1716276646893,-2122.80514437,0.00035367,6]
[327647809,1716277424387,155.67,0.00013973,2]
[327647833,1716277636160,-252.44625317,0.00017256,2]
[327647834,1716277636183,-240.77238663,0.00017257,2]
[327647835,1716277636205,-4692.04258629,0.000199,3]
[327647836,1716277638194,-6461.54863682,0.000199,3]
[327647837,1716277650168,-18033.44139868,0.000199,3]
[327647838,1716277650191,-158.82,0.00024554,2]
[327647839,1716277650214,-154.20842833,0.00026675,2]
[327647840,1716277650235,-299.39002,0.00029187,2]
[327647841,1716277650257,-155.67,0.00029349,2]
[327647842,1716277650279,-1004.85,0.00029437,2]
[327647843,1716277650300,-225.74553769,0.000295,3]
[327647844,1716277650321,-235.13485914,0.0003,30]
[327647862,1716277831431,-150.0,0.00019725,2]
[327647863,1716277831440,-124.95531663,0.000299,3]
[327647864,1716277831455,-57.87778337,0.000299,3]
[327647865,1716277831464,-1271.40624436,0.0003,3]
[327647866,1716277831475,-368.36047548,0.0003,3]
[327647867,1716277831498,-4165.00198084,0.0003,3]
[327647868,1716277831609,-270.26587227,0.0003,3]
[327647869,1716277831622,-791.63952452,0.0003,3]
[327647870,1716277831719,-1869.82265708,0.0003,3]
[327647872,1716277831729,-39250.6868764,0.00030211,30]
[327647874,1716277831739,-17830.73,0.00030212,2]
[327647876,1716277831748,-499.99,0.00030212,2]
[327647878,1716277831758,-486.09,0.0003041,2]
[327647880,1716277831767,-238.54,0.00031083,2]
[327647882,1716277831777,-250.0,0.00031113,2]
[327647884,1716277831785,-166.28,0.00031202,120]
[327647886,1716277831795,-1000.0,0.0003134,2]
[327647889,1716277831805,-170.95,0.0003143,2]
[327647891,1716277831814,-250.0,0.00031445,2]
[327647893,1716277831823,-500.0,0.00031506,10]
[327647895,1716277831833,-700.0,0.00031506,10]
[327647897,1716277831843,-1004.85,0.00031701,2]
[327647898,1716277831852,-432.86652548,0.00031858,7]
[327647900,1716277831861,-700.0,0.00032054,10]
[327647902,1716277831870,-4970.14,0.00032067,2]
[327647904,1716277831879,-700.0,0.00032602,10]
[327647907,1716277831889,-500.0,0.00032602,10]
[327647908,1716277831899,-193.43149986,0.00032873,2]
[327647910,1716277831908,-2097.65111449,0.00032873,2]
[327647912,1716277831917,-169.22236422,0.00032873,2]
[327647914,1716277831927,-178.24,0.0003289,2]
[327647917,1716277831937,-500.0,0.00032899,6]
[327647918,1716277831947,-500.0,0.00032899,6]
[327647921,1716277831957,-150.0,0.00032899,6]
[327647923,1716277831966,-500.0,0.00032899,6]
[327647925,1716277831976,-500.0,0.00032899,6]
[327647927,1716277831987,-500.0,0.00032899,6]
[327647929,1716277831996,-6605.9255615,0.00032899,2]
[327647931,1716277832005,-362891.85623317,0.000329,30]
[327647933,1716277832014,-12362.65187116,0.00032973,2]
[327647935,1716277832023,-150.0,0.00033009,6]
[327647937,1716277832033,-200.0,0.00033009,6]
[327647939,1716277832042,-500.0,0.00033009,6]
[327647941,1716277832051,-500.0,0.00033009,6]
[327647943,1716277832062,-150.0,0.00033118,6]
[327647945,1716277832072,-500.0,0.00033118,6]
[327647947,1716277832081,-500.0,0.00033118,6]
[327647948,1716277832090,-700.0,0.0003315,10]
[327647950,1716277832099,-2097.65111445,0.00033151,2]
[327647952,1716277832108,-150.0,0.00033228,6]
[327647954,1716277832118,-500.0,0.00033228,6]
[327647956,1716277832127,-500.0,0.00033228,6]
[327647958,1716277832136,-154.20842833,0.00033294,2]
[327647960,1716277832147,-150.0,0.00033338,6]
[327647962,1716277832156,-500.0,0.00033338,6]
[327647964,1716277832165,-500.0,0.00033338,6]
[327647966,1716277832175,-500.0,0.00033394,6]
[327647968,1716277832185,-500.0,0.00033394,6]
[327647971,1716277832195,-500.0,0.00033394,6]
[327647973,1716277832204,-500.0,0.00033394,6]
[327647974,1716277832213,-500.0,0.00033394,6]
[327647976,1716277832223,-500.0,0.00033394,6]
[327647978,1716277832233,-500.0,0.00033394,6]
[327647980,1716277832242,-516.10079461,0.00033394,6]
[327647981,1716277832252,-500.0,0.00033394,6]
[327647982,1716277832262,-521.30436048,0.00033394,6]
[327647983,1716277832272,-500.0,0.00033394,6]
[327647984,1716277832281,-500.0,0.00033394,6]
[327647985,1716277832291,-500.0,0.00033394,6]
[327647986,1716277832300,-500.0,0.00033394,6]
[327647987,1716277832310,-345.67359933,0.00033394,6]
[327647988,1716277832320,-500.0,0.00033394,6]
[327647989,1716277832330,-500.0,0.00033394,6]
[327647990,1716277832339,-500.0,0.00033394,6]
[327647991,1716277832349,-500.0,0.00033394,6]
[327647992,1716277832359,-500.0,0.00033394,6]
[327647993,1716277832369,-500.0,0.00033394,6]
[327647994,1716277832378,-500.0,0.00033394,6]
[327647995,1716277832387,-500.0,0.00033394,6]
[327647996,1716277832398,-500.0,0.00033394,6]
[327647997,1716277832407,-500.0,0.00033394,6]
[327647998,1716277832708,-436.91064462,0.00033394,6]
[327647999,1716277832718,-500.0,0.00033394,6]
[327648000,1716277832727,-500.0,0.00033394,6]
[327648001,1716277832736,-500.0,0.00033394,6]
[327648002,1716277832747,-500.0,0.00033394,6]
[327648003,1716277832756,-500.0,0.00033394,6]
[327648004,1716277832765,-500.0,0.00033394,6]
[327648005,1716277832775,-597.0,0.00033394,6]
[327648006,1716277832784,-500.0,0.00033394,6]
[327648007,1716277832794,-500.0,0.00033394,6]
[327648008,1716277832803,-500.0,0.00033394,6]
[327648009,1716277832813,-554.56095906,0.00033394,6]
[327648010,1716277832823,-500.0,0.00033394,6]
[327648011,1716277832832,-500.0,0.00033394,2]
[327648012,1716277832842,-500.0,0.00033394,30]
[327648013,1716277832851,-500.0,0.00033394,6]
[327648014,1716277832861,-2097.65111445,0.0003343,2]
[327648015,1716277832871,-150.0,0.00033447,6]
[327648016,1716277832881,-320.37644245,0.00033447,6]
[327648017,1716277832891,-594.93991199,0.00033447,6]
[327648018,1716277832901,-171.93,0.00033499,120]
[327648019,1716277832910,-153.75,0.000335,2]
[327648020,1716277832920,-153.75,0.000335,2]
[327648021,1716277832929,-153.75,0.000335,2]
[327648022,1716277832940,-153.75,0.000335,2]
[327648023,1716277832949,-153.75,0.000335,2]
[327648024,1716277832960,-500.0,0.00033504,6]
[327648025,1716277832970,-581.17,0.00033504,6]
[327648026,1716277832981,-500.0,0.00033504,6]
[327648027,1716277832991,-500.0,0.00033504,6]
[327648028,1716277833002,-249.45351792,0.00033504,6]
[327648029,1716277833012,-500.0,0.00033504,2]
[327648030,1716277833022,-500.0,0.00033504,30]
[327648031,1716277833033,-500.0,0.00033504,6]
[327648032,1716277833043,-206.88667184,0.00033557,6]
[327648033,1716277833054,-500.0,0.00033613,6]
[327648034,1716277833065,-167.73947553,0.00033613,6]
[327648035,1716277833075,-341.32348975,0.00033613,2]
[327648036,1716277833086,-500.0,0.00033613,30]
[327648037,1716277833095,-496.59581,0.00033613,6]
[327648038,1716277833105,-1170.76249976,0.00033626,4]
[327648039,1716277833115,-700.0,0.00033698,10]
[327648040,1716277833125,-500.0,0.00033698,10]
[327648041,1716277833135,-2097.65111445,0.00033708,2]
[327648042,1716277833146,-525.6,0.00033723,6]
[327648043,1716277833157,-500.0,0.00033723,30]
[327648044,1716277833167,-238.54,0.00033823,2]
[327648045,1716277833177,-500.0,0.00033833,30]
[327648046,1716277833187,-500.0,0.00033942,30]
[327648047,1716277833197,-1004.85,0.00033965,2]
[327648048,1716277833207,-2097.65111445,0.00033987,2]
[327648049,1716277833217,-15000.0,0.00034,4]
[327648050,1716277833227,-500.0,0.00034052,30]
[327648051,1716277833237,-258.68198243,0.00034085,120]
[327648052,1716277833246,-2053.82612812,0.00034085,2]
[327648053,1716277833256,-500.0,0.00034161,30]
[327648054,1716277833266,-2097.65111445,0.00034265,2]
[327648055,1716277833275,-500.0,0.00034271,30]
[327648056,1716277833286,-214.63500817,0.00034381,30]
[327648071,1716277837535,-323.49456937,0.00031082,4]
[327648072,1716277837545,-285.36499183,0.00034381,30]
[327648073,1716277837554,-386.16182421,0.0003449,30]
[327648074,1716277837567,-113.83817579,0.0003449,30]
[327648075,1716277837578,-500.0,0.000345,2]
[327648076,1716277837587,-500.0,0.000345,2]
[327648077,1716277837596,-451.9363882,0.000345,2]
[327648078,1716277837608,-48.0636118,0.000345,2]
[327648079,1716277837617,-500.0,0.000345,2]
[327648080,1716277837627,-500.0,0.000345,2]
[327648081,1716277837636,-109.97720127,0.000345,2]
[327648082,1716277837702,-390.02279873,0.000345,2]
[327648083,1716277837712,-500.0,0.000345,2]
[327648084,1716277837721,-500.0,0.000345,2]
[327648085,1716277837730,-500.0,0.000345,2]
[327648086,1716277837739,-500.0,0.000345,2]
[327648087,1716277837749,-500.0,0.000345,2]
[327648088,1716277837758,-500.0,0.000345,2]
[327648089,1716277837767,-497.94073127,0.000345,2]
[327648090,1716277837779,-2.05926873,0.000345,2]
[327648091,1716277837789,-364.17,0.000345,2]
[327648092,1716277837799,-500.0,0.000345,2]
[327648093,1716277837811,-500.0,0.000345,2]
[327648094,1716277837820,-500.0,0.000345,2]
[327648096,1716277837829,-500.0,0.000345,2]
[327648098,1716277837838,-500.0,0.000345,2]
[327648100,1716277837847,-500.0,0.000345,2]
[327648102,1716277837856,-413.28,0.000345,2]
[327648104,1716277837866,-14.47699478,0.00034544,2]
[327648107,1716277837877,-2083.17411967,0.00034544,2]
[327648108,1716277837887,-152.04,0.00034573,2]
[327648110,1716277837896,-500.0,0.000346,30]
[327648112,1716277837906,-1117.93609719,0.0003466,5]
[327648114,1716277837916,-1076.49582266,0.0003466,5]
[327648116,1716277837926,-162.72,0.00034685,2]
[327648118,1716277837935,-150.0,0.00034685,2]
[327648119,1716277837944,-156.44621301,0.00034688,4]
[327648120,1716277837953,-500.0,0.00034709,30]
[327648121,1716277837963,-700.0,0.00034794,10]
[327648122,1716277837972,-500.0,0.00034794,10]
[327648123,1716277837981,-500.0,0.00034819,30]
[327648124,1716277837991,-2097.65111445,0.00034822,2]
[327648125,1716277838001,-359.85005704,0.000349,2]
[327648126,1716277838011,-359.85005686,0.000349,2]
[327648127,1716277838020,-359.85005686,0.000349,2]
[327648128,1716277838030,-359.85005686,0.000349,2]
[327648129,1716277838039,-359.85005686,0.000349,2]
[327648130,1716277838049,-359.85005686,0.000349,2]
[327648131,1716277838059,-359.85005686,0.000349,2]
[327648132,1716277838068,-359.85005686,0.000349,2]
[327648133,1716277838078,-359.85005686,0.000349,2]
[327648134,1716277838087,-359.85005686,0.000349,2]
[327648135,1716277838097,-359.85005686,0.000349,2]
[327648136,1716277838106,-359.85005686,0.000349,2]
[327648137,1716277838116,-359.85005686,0.000349,2]
[327648138,1716277838125,-359.85005686,0.000349,2]
[327648139,1716277838134,-359.85005686,0.000349,2]
[327648140,1716277838143,-359.85005686,0.000349,2]
[327648141,1716277838153,-500.0,0.00034929,30]
[327648142,1716277838163,-359.85005686,0.00034982,2]
[327648143,1716277838173,-9992.74325279,0.00035,4]
[327648144,1716277838182,-1244.01586668,0.00035,3]
[327648145,1716277838192,-2000.0,0.00035,2]
[327648146,1716277838202,-2000.0,0.00035,2]
[327648147,1716277838212,-2000.0,0.00035,2]
[327648148,1716277838221,-2000.0,0.00035,2]
[327648149,1716277838230,-2000.0,0.00035,2]
[327648150,1716277838239,-2000.0,0.00035,2]
[327648151,1716277838248,-600.14245,0.0003501,2]
[327648152,1716277838259,-500.0,0.00035038,30]
[327648153,1716277838268,-181.79255782,0.00035044,3]
[327648154,1716277838279,-252.32718806,0.00035044,4]
[327648155,1716277838288,-2097.65111445,0.00035101,2]
[327648156,1716277838298,-359.85005686,0.00035114,2]
[327648157,1716277838307,-500.0,0.00035148,30]
[327648158,1716277838323,-200.0,0.0003516,30]
[327648159,1716277838333,-200.0,0.00035183,20]
[327648160,1716277838344,-1000.0,0.00035183,30]
[327648161,1716277838354,-500.0,0.00035183,10]
[327648162,1716277838363,-7500.0,0.00035198,2]
[327648163,1716277838373,-359.85005686,0.00035246,2]
[327648164,1716277838382,-500.0,0.00035257,30]
[327648165,1716277838392,-1000.0,0.00035258,2]
[327648166,1716277838402,-314.7751,0.00035297,2]
[327648167,1716277838412,-2000.0,0.00035297,2]
[327648168,1716277838422,-64826.54,0.00035298,2]
[327648169,1716277838432,-1000.0,0.00035298,120]
[327648170,1716277838442,-17298.8961,0.00035298,120]
[327648171,1716277838453,-1262.9767,0.000353,2]
[327648172,1716277838463,-18103.29,0.000353,2]
[327648173,1716277838472,-2209.5885,0.000353,2]
[327648174,1716277838482,-280.33,0.00035342,6]
[327648175,1716277838494,-3502.19990978,0.00035366,4]
[327648176,1716277838503,-5923.83485563,0.00035367,6]
[327648177,1716277838514,-227.533719,0.00035367,10]
[327648178,1716277838523,-159.931036,0.00035367,7]
[327648179,1716277838535,-500.0,0.00035367,30]
[327648180,1716277838545,-151.0,0.00035367,7]
[327648181,1716277838554,-157.586817,0.00035367,7]
[327648182,1716277838566,-151.0,0.00035367,7]
[327648183,1716277838575,-359.85005686,0.00035378,2]
[327648184,1716277838586,-193.43149985,0.00035379,2]
[327648185,1716277838595,-2097.65111445,0.00035379,2]
[327648186,1716277838605,-178.24,0.00035388,2]
[327648187,1716277838616,-5040.17578536,0.00035396,5]
[327648191,1716277839701,-8014.98935969,0.00035396,5]
[327648192,1716277839714,-1308.18429658,0.00035396,5]
[327648193,1716277839726,-1792.03054795,0.00035396,5]
[327648194,1716277839976,-404.24487,0.00035396,5]
[327648195,1716277840139,-1348.37030117,0.00035396,5]
[327648196,1716277840205,-255.471,0.00035396,5]
[327648213,1716277842570,-250.0,0.00034136,2]
[327648214,1716277842580,-104348.42601975,0.00035396,5]
[327648215,1716277842591,-18187.82325507,0.00035396,5]
[327648216,1716277842626,-10647.75,0.00035396,5]
[327648217,1716277842684,-185537.10000001,0.00035396,5]
[327648218,1716277842697,-65677.18265438,0.00035396,5]
[327648220,1716277846274,-3230.612195,0.00035396,5]
[327648221,1716277846334,-1918.53081558,0.00035396,5]
[327648222,1716277846345,-35658.9075,0.00035396,5]
[327648223,1716277846357,-217462.99687727,0.00035396,5]
[327648224,1716277846369,-1772.156,0.00035396,5]
[327648225,1716277846393,-735.29083033,0.00035396,5]
[327648478,1716277894283,155.67,0.00013973,2]
[327648480,1716278360198,159.59,0.00013973,2]
[327648491,1716278754164,-176.64165223,0.00017258,2]
[327648492,1716278754499,-100.9190713,0.00017259,2]
[327648493,1716278843110,-139.85331533,0.00017259,2]
[327648494,1716278843135,-150.0,0.00019725,2]
[327648495,1716278843178,-210.0,0.00021698,2]
[327648496,1716278843211,-1071.17492174,0.00024097,28]
[327648497,1716278843243,-1000.0,0.00028,2]
[327648498,1716278843274,-208.72291039,0.000299,2]
[327648499,1716278843305,-2448.54,0.0003,4]
[327648500,1716278843334,-1000.0,0.0003,2]
[327648501,1716278843362,-500.0,0.00030136,10]
[327648502,1716278843390,-500.0,0.00030136,10]
[327648503,1716278843417,-499.99,0.00030136,2]
[327648504,1716278843444,-3272.01,0.00030136,2]
[327648505,1716278843471,-3978.8906024,0.00030136,2]
[327648506,1716278847089,-676.6467071,0.00030136,2]
[327648511,1716278969610,-171.93,0.00031562,120]
[327648512,1716278969674,-150.0,0.00033485,120]
[327648513,1716278969720,-150.0,0.00034055,120]
[327648514,1716278969766,-150.0,0.00034381,120]
[327648519,1716279001345,-19424.638905,0.0003,30]
[327648520,1716279001401,-500.0,0.00032899,30]
[327648521,1716279001450,-233.97505249,0.00033009,30]
[327648522,1716279001504,-25000.0,0.00035,60]
[327648523,1716279001547,-200.0,0.00035138,30]
[327648524,1716279001592,-1000.0,0.00035154,30]
[327648525,1716279001638,-5288.0,0.00035297,60]
[327648526,1716279001946,-38425.99876782,0.00035394,30]
[327648527,1716279001997,-10937.70450464,0.00035395,30]
[327648528,1716279002043,-435958.97699603,0.00035398,30]
[327648529,1716279002087,-13130.9889877,0.00035398,30]
[327648530,1716279002799,-2000.0,0.00036,30]
[327648531,1716279002845,-2000.0,0.00036,30]
[327648532,1716279002891,-2000.0,0.00036,30]
[327648533,1716279004090,166.28,0.00030677,120]
[327648555,1716279031705,-400.0,0.00017158,2]
[327648557,1716279031972,-191.0106,0.00017158,2]
[327648558,1716279031983,-163.38,0.00021918,2]
[327648559,1716279031993,-153.67101316,0.00027012,2]
[327648560,1716279032005,-22.08338667,0.00029302,2]
[327648586,1716279037731,-1060.93661333,0.00029302,2]
[327648587,1716279037741,-602.73248508,0.00030136,2]
[327648588,1716279037812,-352.33789223,0.00030136,2]
[327648589,1716279037824,-367.18970664,0.00030136,2]
[327648590,1716279037875,-857.83662277,0.00030136,2]
[327648591,1716279038929,-450.89332225,0.00030136,2]
[327648592,1716279038941,-1363.39024112,0.00030136,2]
[327648765,1716279041731,-914.17500002,0.00030136,2]
[327648766,1716279041743,-483.03303897,0.00030136,2]
[327648767,1716279041791,-19224.97438142,0.00030136,2]
[327648768,1716279041802,-500.0,0.00030136,10]
[327648769,1716279041812,-208.72291038,0.00030256,2]
[327648770,1716279041822,-4981.9,0.00030357,2]
[327648771,1716279041833,-250.0,0.00030714,2]
[327648772,1716279041845,-600.0,0.00030719,2]
[327648773,1716279041855,-2000.0,0.00030757,2]
[327648774,1716279041865,-323.49456937,0.00031099,4]
[327648775,1716279041875,-3074.0,0.000311,4]
[327648776,1716279041883,-500.0,0.00031232,10]
[327648777,1716279041894,-250.0,0.00031281,2]
[327648778,1716279041904,-246.8,0.00031387,2]
[327648779,1716279041913,-500.0,0.00031506,10]
[327648780,1716279041926,-1083.02,0.00031566,2]
[327648781,1716279041936,-225.59952986,0.00031855,7]
[327648783,1716279042259,-1271.63135273,0.00032,2]
[327648785,1716279042269,-592.75613575,0.00032328,10]
[327648786,1716279042279,-500.0,0.00032602,10]
[327648787,1716279042288,-162.33746669,0.00032799,2]
[327648788,1716279042298,-500.0,0.00032899,6]
[327648789,1716279042307,-500.0,0.00032899,6]
[327648790,1716279042317,-500.0,0.00032899,6]
[327648791,1716279042326,-500.0,0.00032899,6]
[327648792,1716279042335,-500.0,0.00032899,6]
[327648794,1716279042345,-500.0,0.00032899,6]
[327648796,1716279042354,-500.0,0.00032899,6]
[327648797,1716279042363,-500.0,0.00032899,6]
[327648798,1716279042373,-526.79,0.00032899,6]
[327648799,1716279042382,-500.0,0.00032899,6]
[327648800,1716279042392,-558.84,0.00032899,6]
[327648801,1716279042401,-500.0,0.00032899,6]
[327648802,1716279042411,-500.0,0.00032899,6]
[327648803,1716279042420,-500.0,0.00032899,6]
[327648804,1716279042429,-271.27737308,0.00032899,6]
[327648805,1716279042439,-500.0,0.00032899,6]
[327648806,1716279042448,-500.0,0.00032899,6]
[327648807,1716279042458,-500.0,0.00032899,6]
[327648808,1716279042467,-500.0,0.00032899,6]
[327648809,1716279042477,-500.0,0.00032899,6]
[327648811,1716279042487,-500.0,0.00032899,6]
[327648812,1716279042497,-500.0,0.00032899,6]
[327648813,1716279042506,-500.0,0.00032899,6]
[327648814,1716279042515,-513.69236377,0.00032899,6]
[327648815,1716279042525,-500.0,0.00032899,6]
[327648816,1716279042534,-553.55,0.00032899,6]
[327648817,1716279042543,-500.0,0.00032899,6]
[327648818,1716279042552,-500.0,0.00032899,6]
[327648819,1716279042562,-500.0,0.00032899,6]
[327648820,1716279042571,-500.0,0.00032899,6]
[327648821,1716279042580,-500.0,0.00032899,6]
[327648822,1716279042589,-500.0,0.00032899,6]
[327648823,1716279042599,-500.0,0.00032899,6]
[327648824,1716279042608,-500.0,0.00032899,6]
[327648825,1716279042617,-500.0,0.00032899,6]
[327648826,1716279042626,-500.0,0.00032899,6]
[327648827,1716279042636,-626.03,0.00032899,6]
[327648829,1716279042645,-641.49,0.00032899,6]
[327648831,1716279042654,-500.0,0.00032899,6]
[327648834,1716279042664,-500.0,0.00032899,6]
[327648836,1716279042673,-500.0,0.00032899,6]
[327648838,1716279042683,-500.0,0.00032899,6]
[327648839,1716279042692,-500.0,0.00032899,6]
[327648841,1716279042701,-503.92,0.00032899,6]
[327648843,1716279042711,-500.0,0.00032899,6]
[327648845,1716279042720,-637.39,0.00032899,6]
[327648847,1716279042729,-594.16,0.00032899,6]
[327648850,1716279042738,-632.9,0.00032899,6]
[327648852,1716279042747,-500.0,0.00032899,6]
[327648854,1716279042757,-640.78826503,0.00032899,6]
[327648856,1716279042766,-500.0,0.00032899,6]
[327648858,1716279042776,-500.0,0.00032899,6]
[327648860,1716279042785,-500.0,0.00032899,6]
[327648862,1716279042795,-500.0,0.00032899,6]
[327648864,1716279042804,-500.0,0.00032899,6]
[327648866,1716279042815,-500.0,0.00032899,6]
[327648868,1716279042825,-500.0,0.00032899,6]
[327648870,1716279042840,-500.0,0.00032899,6]
[327648872,1716279042855,-500.0,0.00032899,6]
[327648875,1716279042864,-537.12,0.00032899,6]
[327648877,1716279042874,-500.0,0.00032899,6]
[327648879,1716279042886,-500.0,0.00032899,6]
[327648880,1716279042895,-500.0,0.00032899,6]
[327648882,1716279042906,-500.0,0.00032899,6]
[327648884,1716279042916,-500.0,0.00032899,6]
[327648886,1716279042925,-600.81,0.00032899,6]
[327648887,1716279042935,-500.0,0.00032899,6]
[327648888,1716279042944,-500.0,0.00032899,6]
[327648889,1716279042954,-500.0,0.00032899,6]
[327648890,1716279042964,-500.0,0.00032899,6]
[327648891,1716279042974,-500.0,0.00032899,6]
[327648892,1716279042983,-500.0,0.00032899,6]
[327648893,1716279042992,-500.0,0.00032899,6]
[327648894,1716279043002,-500.0,0.00032899,6]
[327648895,1716279043011,-500.0,0.00032899,6]
[327648896,1716279043021,-500.0,0.00032899,6]
[327648897,1716279043030,-500.0,0.00032899,6]
[327648898,1716279043039,-500.0,0.00032899,6]
[327648899,1716279043048,-500.0,0.00032899,6]
[327648900,1716279043058,-500.0,0.00032899,6]
[327648901,1716279043068,-500.0,0.00032899,6]
[327648902,1716279043077,-2120.77,0.00032899,6]
[327648903,1716279043087,-500.0,0.00032899,6]
[327648904,1716279043097,-500.0,0.00032899,6]
[327648905,1716279043106,-500.0,0.00032899,6]
[327648906,1716279043116,-500.0,0.00032899,6]
[327648907,1716279043125,-390.58354786,0.00032899,6]
[327648908,1716279043136,-500.0,0.00032899,6]
[327648909,1716279043145,-500.0,0.00032899,6]
[327648910,1716279043156,-500.0,0.00032899,6]
[327648911,1716279043165,-523.22,0.00032899,6]
[327648912,1716279043174,-500.0,0.00032899,6]
[327648913,1716279043184,-503.1575086,0.00032899,6]
[327648914,1716279043193,-500.0,0.00032899,6]
[327648915,1716279043203,-500.0,0.00032899,6]
[327648916,1716279043214,-500.0,0.00032899,6]
[327648917,1716279043224,-500.0,0.00032899,6]
[327648918,1716279043235,-500.0,0.00032899,6]
[327648919,1716279043245,-500.0,0.00032899,6]
[327648920,1716279043256,-500.0,0.00032899,6]
[327648921,1716279043266,-500.0,0.00032899,6]
[327648922,1716279043276,-500.0,0.00032899,6]
[327648924,1716279043286,-504.43864351,0.00032899,6]
[327648926,1716279043295,-500.0,0.00032899,6]
[327648927,1716279043306,-500.0,0.00032899,6]
[327648928,1716279043315,-500.0,0.00032899,6]
[327648929,1716279043325,-500.0,0.00032899,6]
[327648930,1716279043335,-500.0,0.00032899,6]
[327648931,1716279043346,-500.0,0.00032899,6]
[327648932,1716279043355,-375.79908759,0.00032899,6]
[327648933,1716279043365,-500.0,0.00032899,6]
[327648934,1716279043375,-500.0,0.00032899,6]
[327648935,1716279043386,-500.0,0.00032899,6]
[327648936,1716279043395,-500.0,0.00032899,6]
[327648937,1716279043407,-500.0,0.00032899,6]
[327648938,1716279043417,-572.64,0.00032899,6]
[327648939,1716279043427,-553.55,0.00032899,6]
[327648940,1716279043437,-500.0,0.00032899,6]
[327648941,1716279043448,-500.0,0.00032899,6]
[327648942,1716279043459,-500.0,0.00032899,6]
[327648943,1716279043469,-500.0,0.00032899,6]
[327648944,1716279043478,-500.0,0.00032899,6]
[327648945,1716279043492,-500.0,0.00032899,6]
[327648946,1716279043503,-500.0,0.00032899,6]
[327648947,1716279043513,-626.03,0.00032899,6]
[327648948,1716279043522,-504.16,0.00032899,6]
[327648949,1716279043532,-500.0,0.00032899,6]
[327648950,1716279043541,-500.0,0.00032899,6]
[327648951,1716279043551,-500.0,0.00032899,6]
[327648952,1716279043562,-594.16,0.00032899,6]